[Event "Titled Tuesday Blitz March 21 Early 2023"]
[White "Berezin, Viktor"]
[Black "Firouzja, Alireza"]
[WhiteFideId "14107872"]
[BlackFideId "12573981"]
[WhiteElo "2310"]
[BlackElo "2904"]
[Result "0-1"]
[Round "03"]
[TimeControl "180+2"]
[Date "2023.03.21"]
[WhiteClock "0:00:04"]
[BlackClock "0:01:17"]

1. d4 {[%clk 0:03:00]}  Nf6 {[%clk 0:02:59]} 2. c4 {[%clk 0:03:00]}  g6 {[%clk 0:02:59]} 3. Nf3 {[%clk 0:02:59]}  Bg7 {[%clk 0:02:59]} 4. g3 {[%clk 0:03:00]}  O-O {[%clk 0:03:00]} 5. Bg2 {[%clk 0:03:00]}  d6 {[%clk 0:03:00]} 6. O-O {[%clk 0:03:01]}  Nbd7 {[%clk 0:03:01]} 7. Nc3 {[%clk 0:03:00]}  e5 {[%clk 0:03:02]} 8. h3 {[%clk 0:03:01]}  c6 {[%clk 0:03:02]} 9. e4 {[%clk 0:03:01]}  Qb6 {[%clk 0:02:59]} 10. c5 {[%clk 0:02:49]}  dxc5 {[%clk 0:03:00]} 11. dxe5 {[%clk 0:02:50]}  Ne8 {[%clk 0:03:00]} 12. e6 {[%clk 0:02:35]}  fxe6 {[%clk 0:03:01]} 13. Ng5 {[%clk 0:02:35]}  Ne5 {[%clk 0:03:02]} 14. f4 {[%clk 0:02:29]}  Nf7 {[%clk 0:03:02]} 15. Nxf7 {[%clk 0:02:21]}  Bd4+ {[%clk 0:03:02]} 16. Kh2 {[%clk 0:02:20]}  Rxf7 {[%clk 0:03:02]} 17. e5 {[%clk 0:02:20]}  Nc7 {[%clk 0:03:02]} 18. Ne4 {[%clk 0:02:20]}  Nd5 {[%clk 0:03:02]} 19. Nd6 {[%clk 0:02:13]}  Re7 {[%clk 0:02:52]} 20. Rb1 {[%clk 0:02:01]}  a5 {[%clk 0:02:50]} 21. Bd2 {[%clk 0:01:57]}  Qd8 {[%clk 0:02:45]} 22. Qf3 {[%clk 0:01:50]}  b6 {[%clk 0:02:43]} 23. Bc3 {[%clk 0:01:48]}  Ba6 {[%clk 0:02:19]} 24. Rfd1 {[%clk 0:01:41]}  Bxc3 {[%clk 0:02:17]} 25. bxc3 {[%clk 0:01:41]}  c4 {[%clk 0:02:17]} 26. h4 {[%clk 0:01:35]}  Qf8 {[%clk 0:02:17]} 27. Bh3 {[%clk 0:01:28]}  Kh8 {[%clk 0:02:17]} 28. Ne4 {[%clk 0:01:25]}  Rd8 {[%clk 0:02:09]} 29. Ng5 {[%clk 0:01:22]}  Bc8 {[%clk 0:02:09]} 30. Ne4 {[%clk 0:01:17]}  b5 {[%clk 0:01:58]} 31. a4 {[%clk 0:01:15]}  b4 {[%clk 0:01:57]} 32. Rd4 {[%clk 0:01:08]}  Nxc3 {[%clk 0:01:53]} 33. Rxd8 {[%clk 0:01:01]}  Qxd8 {[%clk 0:01:54]} 34. Nxc3 {[%clk 0:00:57]}  Qd2+ {[%clk 0:01:54]} 35. Bg2 {[%clk 0:00:51]}  bxc3 {[%clk 0:01:48]} 36. Qxc6 {[%clk 0:00:39]}  Bd7 {[%clk 0:01:33]} 37. Qc5 {[%clk 0:00:33]}  Rf7 {[%clk 0:01:31]} 38. h5 {[%clk 0:00:21]}  c2 {[%clk 0:01:28]} 39. Rb8+ {[%clk 0:00:13]}  Kg7 {[%clk 0:01:27]} 40. h6+ {[%clk 0:00:05]}  Kxh6 {[%clk 0:01:28]} 41. Rf8 {[%clk 0:00:06]}  Bc6 {[%clk 0:01:19]} 42. Qxc6 {[%clk 0:00:04]}  Rxf8 {[%clk 0:01:19]} 43. Qxe6 {[%clk 0:00:05]}  c1=Q {[%clk 0:01:19]} 44. Qh3+ {[%clk 0:00:04]}  Kg7 {[%clk 0:01:19]} 45. Qe6 {[%clk 0:00:04]}  Qd8 {[%clk 0:01:17]} 0-1


[Site "https://www.chess.com"]

[Event "Titled Tuesday Blitz March 21 Early 2023"]
[White "Tsydypov, Zhamsaran"]
[Black "Srinath, Rao S.V."]
[WhiteFideId "4108566"]
[BlackFideId "5028876"]
[WhiteElo "2584"]
[BlackElo "2196"]
[Result "1-0"]
[Round "03"]
[TimeControl "180+2"]
[Date "2023.03.21"]
[WhiteClock "0:00:54"]
[BlackClock "0:00:47"]

1. d4 {[%clk 0:03:00]}  Nf6 {[%clk 0:02:59]} 2. c4 {[%clk 0:03:00]}  g6 {[%clk 0:02:59]} 3. Nf3 {[%clk 0:03:00]}  Bg7 {[%clk 0:02:59]} 4. g3 {[%clk 0:03:00]}  O-O {[%clk 0:02:58]} 5. Bg2 {[%clk 0:03:01]}  d6 {[%clk 0:02:59]} 6. O-O {[%clk 0:03:01]}  Nc6 {[%clk 0:02:59]} 7. Nc3 {[%clk 0:03:01]}  e5 {[%clk 0:03:00]} 8. d5 {[%clk 0:03:01]}  Nb8 {[%clk 0:02:59]} 9. e4 {[%clk 0:03:01]}  a5 {[%clk 0:03:00]} 10. Ne1 {[%clk 0:03:01]}  Na6 {[%clk 0:03:01]} 11. Nd3 {[%clk 0:03:01]}  Nb4 {[%clk 0:03:01]} 12. Rb1 {[%clk 0:02:52]}  Nd7 {[%clk 0:02:59]} 13. Be3 {[%clk 0:02:51]}  b6 {[%clk 0:02:55]} 14. Ne1 {[%clk 0:02:46]}  f5 {[%clk 0:02:47]} 15. a3 {[%clk 0:02:45]}  Na6 {[%clk 0:02:47]} 16. b4 {[%clk 0:02:46]}  axb4 {[%clk 0:02:38]} 17. axb4 {[%clk 0:02:45]}  f4 {[%clk 0:02:39]} 18. Bd2 {[%clk 0:02:45]}  g5 {[%clk 0:02:35]} 19. Nd3 {[%clk 0:02:42]}  Nf6 {[%clk 0:02:33]} 20. Qb3 {[%clk 0:02:05]}  Kh8 {[%clk 0:02:26]} 21. f3 {[%clk 0:01:56]}  fxg3 {[%clk 0:02:17]} 22. hxg3 {[%clk 0:01:55]}  Nh5 {[%clk 0:02:18]} 23. Be1 {[%clk 0:01:51]}  g4 {[%clk 0:02:15]} 24. fxg4 {[%clk 0:01:37]}  Bxg4 {[%clk 0:02:13]} 25. Rxf8+ {[%clk 0:01:36]}  Bxf8 {[%clk 0:02:13]} 26. Nf2 {[%clk 0:01:26]}  Qg5 {[%clk 0:02:09]} 27. Nxg4 {[%clk 0:01:25]}  Qxg4 {[%clk 0:02:09]} 28. Nd1 {[%clk 0:01:24]}  Bh6 {[%clk 0:02:05]} 29. Qf3 {[%clk 0:01:20]}  Qg5 {[%clk 0:01:53]} 30. Qf5 {[%clk 0:01:11]}  Rf8 {[%clk 0:01:25]} 31. Qxg5 {[%clk 0:01:09]}  Bxg5 {[%clk 0:01:26]} 32. Ra1 {[%clk 0:01:09]}  Nb8 {[%clk 0:01:26]} 33. Ra7 {[%clk 0:01:09]}  Bd8 {[%clk 0:01:22]} 34. Ne3 {[%clk 0:01:05]}  Ng7 {[%clk 0:01:14]} 35. Bh3 {[%clk 0:01:04]}  c6 {[%clk 0:01:01]} 36. Rb7 {[%clk 0:00:58]}  Bg5 {[%clk 0:00:59]} 37. Bf2 {[%clk 0:00:55]}  Na6 {[%clk 0:00:47]} 38. Rxb6 {[%clk 0:00:54]} 1-0


[Site "https://www.chess.com"]

[Event "Titled Tuesday Blitz March 21 Early 2023"]
[White "Makhnev, Denis"]
[Black "Ismagilov, Damir"]
[WhiteFideId "13707647"]
[BlackFideId "34199982"]
[WhiteElo "2525"]
[BlackElo "2078"]
[Result "1-0"]
[Round "03"]
[TimeControl "180+2"]
[Date "2023.03.21"]
[WhiteClock "0:00:19"]
[BlackClock "0:00:06"]

1. d4 {[%clk 0:03:00]}  Nf6 {[%clk 0:02:58]} 2. c4 {[%clk 0:03:01]}  e6 {[%clk 0:02:58]} 3. Nf3 {[%clk 0:03:01]}  b6 {[%clk 0:02:58]} 4. g3 {[%clk 0:03:01]}  c6 {[%clk 0:02:58]} 5. Bg2 {[%clk 0:02:59]}  d5 {[%clk 0:02:59]} 6. Qc2 {[%clk 0:02:57]}  Be7 {[%clk 0:02:58]} 7. O-O {[%clk 0:02:57]}  O-O {[%clk 0:02:58]} 8. Nbd2 {[%clk 0:02:57]}  c5 {[%clk 0:02:58]} 9. cxd5 {[%clk 0:02:50]}  exd5 {[%clk 0:02:54]} 10. Ne5 {[%clk 0:02:43]}  Bb7 {[%clk 0:02:30]} 11. Rd1 {[%clk 0:02:34]}  Nbd7 {[%clk 0:02:25]} 12. Nxd7 {[%clk 0:02:30]}  Qxd7 {[%clk 0:02:22]} 13. dxc5 {[%clk 0:02:30]}  Rac8 {[%clk 0:02:05]} 14. Nb3 {[%clk 0:02:27]}  bxc5 {[%clk 0:01:59]} 15. Bf4 {[%clk 0:02:25]}  d4 {[%clk 0:01:51]} 16. Bxb7 {[%clk 0:02:22]}  Qxb7 {[%clk 0:01:52]} 17. Rac1 {[%clk 0:02:23]}  Nd5 {[%clk 0:01:47]} 18. Bd2 {[%clk 0:02:21]}  Qa6 {[%clk 0:01:40]} 19. Qc4 {[%clk 0:02:19]}  Qxc4 {[%clk 0:01:26]} 20. Rxc4 {[%clk 0:02:18]}  Nb6 {[%clk 0:01:27]} 21. Rc2 {[%clk 0:02:18]}  Rfd8 {[%clk 0:01:15]} 22. Ba5 {[%clk 0:02:18]}  c4 {[%clk 0:00:44]} 23. Nxd4 {[%clk 0:02:05]}  Bf6 {[%clk 0:00:43]} 24. Rcd2 {[%clk 0:01:55]}  Rd5 {[%clk 0:00:40]} 25. Bxb6 {[%clk 0:00:32]}  axb6 {[%clk 0:00:38]} 26. Nf3 {[%clk 0:00:33]}  Rb5 {[%clk 0:00:33]} 27. Nd4 {[%clk 0:00:17]}  Rd5 {[%clk 0:00:33]} 28. e3 {[%clk 0:00:16]}  g6 {[%clk 0:00:26]} 29. Ne2 {[%clk 0:00:16]}  Rb5 {[%clk 0:00:21]} 30. Nd4 {[%clk 0:00:13]}  Ra5 {[%clk 0:00:21]} 31. a3 {[%clk 0:00:11]}  c3 {[%clk 0:00:22]} 32. Rc2 {[%clk 0:00:11]}  Rac5 {[%clk 0:00:20]} 33. b4 {[%clk 0:00:08]}  Rc4 {[%clk 0:00:17]} 34. Nb5 {[%clk 0:00:08]}  Kg7 {[%clk 0:00:10]} 35. Kf1 {[%clk 0:00:06]}  R4c6 {[%clk 0:00:07]} 36. Ke2 {[%clk 0:00:06]}  Re8 {[%clk 0:00:07]} 37. Rd5 {[%clk 0:00:05]}  Re4 {[%clk 0:00:06]} 38. Kd3 {[%clk 0:00:05]}  Rec4 {[%clk 0:00:05]} 39. Rd6 {[%clk 0:00:04]}  Rxd6+ {[%clk 0:00:04]} 40. Nxd6 {[%clk 0:00:04]}  Rc7 {[%clk 0:00:04]} 41. Nb5 {[%clk 0:00:03]}  Rd7+ {[%clk 0:00:04]} 42. Kc4 {[%clk 0:00:04]}  Rd1 {[%clk 0:00:04]} 43. Nxc3 {[%clk 0:00:03]}  Ra1 {[%clk 0:00:02]} 44. Nb5 {[%clk 0:00:03]}  Rh1 {[%clk 0:00:01]} 45. h4 {[%clk 0:00:04]}  Ra1 {[%clk 0:00:02]} 46. Kd5 {[%clk 0:00:04]}  g5 {[%clk 0:00:02]} 47. hxg5 {[%clk 0:00:04]}  Bxg5 {[%clk 0:00:03]} 48. Kc6 {[%clk 0:00:05]}  Bf6 {[%clk 0:00:04]} 49. Kxb6 {[%clk 0:00:05]}  h5 {[%clk 0:00:03]} 50. Kb7 {[%clk 0:00:05]}  h4 {[%clk 0:00:04]} 51. gxh4 {[%clk 0:00:05]}  Bxh4 {[%clk 0:00:04]} 52. Kc6 {[%clk 0:00:02]}  Rf1 {[%clk 0:00:05]} 53. f4 {[%clk 0:00:03]}  Bf2 {[%clk 0:00:06]} 54. Nd4 {[%clk 0:00:03]}  Kg6 {[%clk 0:00:05]} 55. Re2 {[%clk 0:00:03]}  Bg1 {[%clk 0:00:02]} 56. Kd5 {[%clk 0:00:03]}  Kf6 {[%clk 0:00:02]} 57. Ke4 {[%clk 0:00:03]}  Ra1 {[%clk 0:00:03]} 58. Nb5 {[%clk 0:00:04]}  Rb1 {[%clk 0:00:02]} 59. Rc2 {[%clk 0:00:04]}  Rf1 {[%clk 0:00:02]} 60. Rc6+ {[%clk 0:00:04]}  Kg7 {[%clk 0:00:03]} 61. Rc3 {[%clk 0:00:05]}  Re1 {[%clk 0:00:04]} 62. Nd4 {[%clk 0:00:05]}  Ra1 {[%clk 0:00:03]} 63. Rb3 {[%clk 0:00:06]}  Bf2 {[%clk 0:00:03]} 64. b5 {[%clk 0:00:06]}  Be1 {[%clk 0:00:04]} 65. b6 {[%clk 0:00:07]}  Ba5 {[%clk 0:00:01]} 66. b7 {[%clk 0:00:07]}  Bc7 {[%clk 0:00:02]} 67. Kd5 {[%clk 0:00:08]}  Bb8 {[%clk 0:00:03]} 68. Nc6 {[%clk 0:00:08]}  Rd1+ {[%clk 0:00:03]} 69. Ke4 {[%clk 0:00:08]}  Bc7 {[%clk 0:00:03]} 70. b8=Q {[%clk 0:00:09]}  Bxb8 {[%clk 0:00:04]} 71. Nxb8 {[%clk 0:00:10]}  Kf6 {[%clk 0:00:04]} 72. Nc6 {[%clk 0:00:10]}  Ke6 {[%clk 0:00:04]} 73. Nd4+ {[%clk 0:00:11]}  Kd6 {[%clk 0:00:05]} 74. a4 {[%clk 0:00:11]}  Ra1 {[%clk 0:00:04]} 75. Rb6+ {[%clk 0:00:11]}  Kc5 {[%clk 0:00:04]} 76. Ra6 {[%clk 0:00:12]}  f5+ {[%clk 0:00:03]} 77. Nxf5 {[%clk 0:00:12]}  Rd1 {[%clk 0:00:03]} 78. Nd4 {[%clk 0:00:12]}  Kc4 {[%clk 0:00:03]} 79. f5 {[%clk 0:00:12]}  Rf1 {[%clk 0:00:03]} 80. f6 {[%clk 0:00:13]}  Kc5 {[%clk 0:00:03]} 81. Ke5 {[%clk 0:00:13]}  Kc4 {[%clk 0:00:02]} 82. Ke6 {[%clk 0:00:12]}  Kc5 {[%clk 0:00:03]} 83. f7 {[%clk 0:00:13]}  Rf2 {[%clk 0:00:03]} 84. Ke7 {[%clk 0:00:13]}  Kd5 {[%clk 0:00:03]} 85. Ne6 {[%clk 0:00:14]}  Ke5 {[%clk 0:00:03]} 86. f8=Q {[%clk 0:00:14]}  Rxf8 {[%clk 0:00:02]} 87. Nxf8 {[%clk 0:00:15]}  Kd5 {[%clk 0:00:03]} 88. Re6 {[%clk 0:00:16]}  Kc5 {[%clk 0:00:03]} 89. a5 {[%clk 0:00:16]}  Kb4 {[%clk 0:00:04]} 90. a6 {[%clk 0:00:17]}  Kc4 {[%clk 0:00:05]} 91. Kd7 {[%clk 0:00:18]}  Kd3 {[%clk 0:00:06]} 92. Kc7 {[%clk 0:00:19]} 1-0


[Site "https://www.chess.com"]

[Event "Titled Tuesday Blitz March 21 Early 2023"]
[White "Ibarra Jerez, Jose Carlos"]
[Black "Popov, Mikhail"]
[WhiteFideId "2226332"]
[BlackFideId "4146182"]
[WhiteElo "2638"]
[BlackElo "2270"]
[Result "0-1"]
[Round "03"]
[TimeControl "180+2"]
[Date "2023.03.21"]
[WhiteClock "0:00:01"]
[BlackClock "0:00:14"]

1. e4 {[%clk 0:03:00]}  e6 {[%clk 0:02:59]} 2. d4 {[%clk 0:03:00]}  d5 {[%clk 0:03:00]} 3. Nc3 {[%clk 0:03:01]}  Nf6 {[%clk 0:02:59]} 4. Bg5 {[%clk 0:03:00]}  dxe4 {[%clk 0:02:58]} 5. Nxe4 {[%clk 0:03:00]}  Be7 {[%clk 0:02:58]} 6. Bxf6 {[%clk 0:03:01]}  Bxf6 {[%clk 0:02:59]} 7. Nf3 {[%clk 0:03:00]}  O-O {[%clk 0:02:59]} 8. Qd2 {[%clk 0:03:00]}  b6 {[%clk 0:02:59]} 9. O-O-O {[%clk 0:02:59]}  Bb7 {[%clk 0:02:59]} 10. Bd3 {[%clk 0:02:57]}  Nd7 {[%clk 0:03:00]} 11. c3 {[%clk 0:02:52]}  Be7 {[%clk 0:02:59]} 12. Neg5 {[%clk 0:02:49]}  h6 {[%clk 0:02:55]} 13. h4 {[%clk 0:02:36]}  c5 {[%clk 0:02:51]} 14. Qc2 {[%clk 0:02:25]}  cxd4 {[%clk 0:02:31]} 15. Bh7+ {[%clk 0:02:17]}  Kh8 {[%clk 0:02:26]} 16. Rxd4 {[%clk 0:02:17]}  Qc7 {[%clk 0:02:17]} 17. Bg8 {[%clk 0:02:02]}  Nf6 {[%clk 0:02:16]} 18. Bxf7 {[%clk 0:01:58]}  e5 {[%clk 0:01:19]} 19. Rc4 {[%clk 0:01:48]}  Bc5 {[%clk 0:01:01]} 20. Qg6 {[%clk 0:01:25]}  e4 {[%clk 0:00:46]} 21. Nd4 {[%clk 0:01:20]}  Qf4+ {[%clk 0:00:42]} 22. Kb1 {[%clk 0:01:18]}  Bxd4 {[%clk 0:00:41]} 23. Rxd4 {[%clk 0:00:56]}  Qxf2 {[%clk 0:00:39]} 24. Bb3 {[%clk 0:00:27]}  e3 {[%clk 0:00:27]} 25. Bc2 {[%clk 0:00:15]}  e2 {[%clk 0:00:26]} 26. a3 {[%clk 0:00:03]}  e1=Q+ {[%clk 0:00:26]} 27. Rxe1 {[%clk 0:00:03]}  Qxe1+ {[%clk 0:00:26]} 28. Rd1 {[%clk 0:00:02]}  Qe8 {[%clk 0:00:20]} 29. Qf5 {[%clk 0:00:01]}  Rd8 {[%clk 0:00:14]} 0-1


[Site "https://www.chess.com"]

[Event "Titled Tuesday Blitz March 21 Early 2023"]
[White "Nefedov, Sergey"]
[Black "Babazada, Khazar"]
[WhiteFideId "24113417"]
[BlackFideId "13413554"]
[WhiteElo "2227"]
[BlackElo "2364"]
[Result "0-1"]
[Round "03"]
[TimeControl "180+2"]
[Date "2023.03.21"]
[WhiteClock "0:00:02"]
[BlackClock "0:01:34"]

1. d4 {[%clk 0:03:00]}  Nf6 {[%clk 0:02:57]} 2. Nf3 {[%clk 0:03:00]}  g6 {[%clk 0:02:57]} 3. c4 {[%clk 0:03:00]}  Bg7 {[%clk 0:02:58]} 4. Nc3 {[%clk 0:03:01]}  d6 {[%clk 0:02:58]} 5. Bg5 {[%clk 0:03:01]}  h6 {[%clk 0:02:57]} 6. Bf4 {[%clk 0:03:00]}  O-O {[%clk 0:02:57]} 7. Qd2 {[%clk 0:03:01]}  Kh7 {[%clk 0:02:57]} 8. h4 {[%clk 0:03:01]}  Bg4 {[%clk 0:02:57]} 9. e4 {[%clk 0:03:00]}  Bxf3 {[%clk 0:02:56]} 10. gxf3 {[%clk 0:03:00]}  Nc6 {[%clk 0:02:56]} 11. d5 {[%clk 0:03:00]}  e5 {[%clk 0:02:56]} 12. Be3 {[%clk 0:02:55]}  Nd4 {[%clk 0:02:55]} 13. Be2 {[%clk 0:02:44]}  Nh5 {[%clk 0:02:55]} 14. O-O-O {[%clk 0:02:37]}  c5 {[%clk 0:02:55]} 15. f4 {[%clk 0:02:37]}  exf4 {[%clk 0:02:52]} 16. Bxh5 {[%clk 0:02:10]}  fxe3 {[%clk 0:02:48]} 17. fxe3 {[%clk 0:02:10]}  gxh5 {[%clk 0:02:48]} 18. exd4 {[%clk 0:02:10]}  cxd4 {[%clk 0:02:49]} 19. Ne2 {[%clk 0:02:09]}  Rc8 {[%clk 0:02:50]} 20. Qd3 {[%clk 0:02:01]}  b5 {[%clk 0:02:49]} 21. Kb1 {[%clk 0:01:51]}  bxc4 {[%clk 0:02:47]} 22. Qf3 {[%clk 0:01:44]}  d3 {[%clk 0:02:44]} 23. Nf4 {[%clk 0:01:43]}  Qf6 {[%clk 0:02:43]} 24. Rh2 {[%clk 0:01:41]}  Rb8 {[%clk 0:02:44]} 25. Rdd2 {[%clk 0:01:27]}  c3 {[%clk 0:02:43]} 26. Rxd3 {[%clk 0:01:27]}  c2+ {[%clk 0:02:43]} 27. Rxc2 {[%clk 0:01:24]}  Rxb2+ {[%clk 0:02:42]} 28. Kc1 {[%clk 0:01:25]}  Rxc2+ {[%clk 0:02:32]} 29. Kxc2 {[%clk 0:01:25]}  Rc8+ {[%clk 0:02:31]} 30. Kd1 {[%clk 0:00:53]}  Qa1+ {[%clk 0:02:28]} 31. Ke2 {[%clk 0:00:51]}  Rc2+ {[%clk 0:02:25]} 32. Rd2 {[%clk 0:00:50]}  Rxd2+ {[%clk 0:02:24]} 33. Kxd2 {[%clk 0:00:51]}  Qxa2+ {[%clk 0:02:25]} 34. Kd1 {[%clk 0:00:48]}  Qb1+ {[%clk 0:02:23]} 35. Ke2 {[%clk 0:00:47]}  Qb2+ {[%clk 0:02:23]} 36. Kf1 {[%clk 0:00:47]}  Qc1+ {[%clk 0:02:23]} 37. Kg2 {[%clk 0:00:45]}  Qb2+ {[%clk 0:02:21]} 38. Kh3 {[%clk 0:00:44]}  Qf6 {[%clk 0:02:11]} 39. Kg3 {[%clk 0:00:31]}  a5 {[%clk 0:02:04]} 40. Qd3 {[%clk 0:00:15]}  Qe5 {[%clk 0:02:01]} 41. Kf3 {[%clk 0:00:14]}  a4 {[%clk 0:02:01]} 42. Qa3 {[%clk 0:00:09]}  Qd4 {[%clk 0:02:02]} 43. Nd3 {[%clk 0:00:07]}  f5 {[%clk 0:02:00]} 44. exf5 {[%clk 0:00:06]}  Qxd5+ {[%clk 0:02:01]} 45. Ke3 {[%clk 0:00:05]}  Bd4+ {[%clk 0:02:01]} 46. Kd2 {[%clk 0:00:05]}  Qg2+ {[%clk 0:02:01]} 47. Kd1 {[%clk 0:00:05]}  Qf1+ {[%clk 0:02:01]} 48. Kd2 {[%clk 0:00:05]}  Qg2+ {[%clk 0:01:55]} 49. Kd1 {[%clk 0:00:05]}  Qc6 {[%clk 0:01:54]} 50. Kd2 {[%clk 0:00:05]}  Bf6 {[%clk 0:01:53]} 51. Qa2 {[%clk 0:00:05]}  d5 {[%clk 0:01:51]} 52. Qb1 {[%clk 0:00:03]}  a3 {[%clk 0:01:49]} 53. Qb3 {[%clk 0:00:04]}  Qd6 {[%clk 0:01:40]} 54. Nb4 {[%clk 0:00:04]}  Qf4+ {[%clk 0:01:37]} 55. Kc2 {[%clk 0:00:04]}  Qxf5+ {[%clk 0:01:38]} 56. Kc1 {[%clk 0:00:04]}  Qf1+ {[%clk 0:01:37]} 57. Kc2 {[%clk 0:00:04]}  Qc4+ {[%clk 0:01:33]} 58. Qxc4 {[%clk 0:00:03]}  dxc4 {[%clk 0:01:34]} 59. Nd5 {[%clk 0:00:02]}  Bxh4 {[%clk 0:01:34]} 0-1


[Site "https://www.chess.com"]

[Event "Titled Tuesday Blitz March 21 Early 2023"]
[White "Kavutskiy, Konstantin"]
[Black "Durarbayli, Vasif"]
[WhiteFideId "2026384"]
[BlackFideId "13402935"]
[WhiteElo "2369"]
[BlackElo "2543"]
[Result "0-1"]
[Round "03"]
[TimeControl "180+2"]
[Date "2023.03.21"]
[WhiteClock "0:00:02"]
[BlackClock "0:00:02"]

1. d4 {[%clk 0:03:00]}  Nf6 {[%clk 0:02:58]} 2. Bg5 {[%clk 0:02:59]}  d5 {[%clk 0:02:58]} 3. Nd2 {[%clk 0:02:59]}  Nbd7 {[%clk 0:02:56]} 4. e3 {[%clk 0:02:59]}  h6 {[%clk 0:02:53]} 5. Bh4 {[%clk 0:02:57]}  e6 {[%clk 0:02:52]} 6. Bd3 {[%clk 0:02:56]}  c5 {[%clk 0:02:52]} 7. c3 {[%clk 0:02:56]}  Bd6 {[%clk 0:02:51]} 8. Ngf3 {[%clk 0:02:51]}  b6 {[%clk 0:02:51]} 9. Qe2 {[%clk 0:02:43]}  Bb7 {[%clk 0:02:50]} 10. e4 {[%clk 0:02:40]}  dxe4 {[%clk 0:02:49]} 11. Nxe4 {[%clk 0:02:39]}  Be7 {[%clk 0:02:46]} 12. dxc5 {[%clk 0:02:17]}  Nxe4 {[%clk 0:01:59]} 13. Bxe7 {[%clk 0:02:05]}  Qxe7 {[%clk 0:01:57]} 14. Bxe4 {[%clk 0:02:01]}  Nxc5 {[%clk 0:01:56]} 15. Qb5+ {[%clk 0:01:41]}  Kf8 {[%clk 0:01:51]} 16. Bxb7 {[%clk 0:01:38]}  Qxb7 {[%clk 0:01:48]} 17. O-O {[%clk 0:01:34]}  g5 {[%clk 0:01:29]} 18. Rad1 {[%clk 0:01:32]}  Kg7 {[%clk 0:01:29]} 19. Qe2 {[%clk 0:01:22]}  Qe4 {[%clk 0:01:20]} 20. Qxe4 {[%clk 0:01:15]}  Nxe4 {[%clk 0:01:21]} 21. Rd7 {[%clk 0:01:14]}  Nc5 {[%clk 0:01:19]} 22. Rc7 {[%clk 0:01:03]}  Rhc8 {[%clk 0:01:15]} 23. Rxc8 {[%clk 0:01:03]}  Rxc8 {[%clk 0:01:16]} 24. Rd1 {[%clk 0:01:03]}  Na4 {[%clk 0:01:08]} 25. Rd2 {[%clk 0:01:03]}  b5 {[%clk 0:01:08]} 26. Kf1 {[%clk 0:01:01]}  Kf6 {[%clk 0:00:56]} 27. Nd4 {[%clk 0:00:58]}  a6 {[%clk 0:00:55]} 28. Ke2 {[%clk 0:00:55]}  Nb6 {[%clk 0:00:55]} 29. Kd3 {[%clk 0:00:43]}  Nc4 {[%clk 0:00:53]} 30. Re2 {[%clk 0:00:43]}  e5 {[%clk 0:00:49]} 31. Nb3 {[%clk 0:00:39]}  a5 {[%clk 0:00:40]} 32. Kc2 {[%clk 0:00:39]}  Kf5 {[%clk 0:00:32]} 33. Nd2 {[%clk 0:00:35]}  Nd6 {[%clk 0:00:32]} 34. f3 {[%clk 0:00:33]}  b4 {[%clk 0:00:22]} 35. Kb3 {[%clk 0:00:32]}  bxc3 {[%clk 0:00:21]} 36. bxc3 {[%clk 0:00:33]}  Nb5 {[%clk 0:00:17]} 37. Ne4 {[%clk 0:00:31]}  Ke6 {[%clk 0:00:12]} 38. Rd2 {[%clk 0:00:28]}  f5 {[%clk 0:00:11]} 39. a4 {[%clk 0:00:26]}  fxe4 {[%clk 0:00:04]} 40. axb5 {[%clk 0:00:26]}  exf3 {[%clk 0:00:05]} 41. gxf3 {[%clk 0:00:26]}  h5 {[%clk 0:00:02]} 42. c4 {[%clk 0:00:23]}  g4 {[%clk 0:00:03]} 43. fxg4 {[%clk 0:00:20]}  hxg4 {[%clk 0:00:04]} 44. Rc2 {[%clk 0:00:18]}  Kd6 {[%clk 0:00:03]} 45. Ka4 {[%clk 0:00:11]}  Kc5 {[%clk 0:00:02]} 46. Rg2 {[%clk 0:00:12]}  Kxc4 {[%clk 0:00:01]} 47. Rxg4+ {[%clk 0:00:12]}  Kc5 {[%clk 0:00:02]} 48. Rg1 {[%clk 0:00:11]}  Kb6 {[%clk 0:00:02]} 49. Re1 {[%clk 0:00:11]}  Rc4+ {[%clk 0:00:02]} 50. Kb3 {[%clk 0:00:10]}  Rb4+ {[%clk 0:00:03]} 51. Ka3 {[%clk 0:00:10]}  e4 {[%clk 0:00:01]} 52. h4 {[%clk 0:00:09]}  Kxb5 {[%clk 0:00:01]} 53. Rh1 {[%clk 0:00:10]}  Kc4 {[%clk 0:00:02]} 54. h5 {[%clk 0:00:09]}  Rb7 {[%clk 0:00:02]} 55. h6 {[%clk 0:00:08]}  Rh7 {[%clk 0:00:03]} 56. Kb2 {[%clk 0:00:02]}  Kd3 {[%clk 0:00:02]} 57. Kc1 {[%clk 0:00:02]}  Ke2 {[%clk 0:00:01]} 58. Kc2 {[%clk 0:00:02]}  e3 {[%clk 0:00:01]} 59. Kc3 {[%clk 0:00:02]}  a4 {[%clk 0:00:01]} 60. Kb4 {[%clk 0:00:02]}  Kd2 {[%clk 0:00:01]} 61. Kxa4 {[%clk 0:00:02]}  e2 {[%clk 0:00:02]} 0-1


[Site "https://www.chess.com"]

[Event "Titled Tuesday Blitz March 21 Early 2023"]
[White "Yeletsky, Ivan"]
[Black "Gubajdullin, Alexei"]
[WhiteFideId "24180327"]
[BlackFideId "4141202"]
[WhiteElo "2414"]
[BlackElo "2267"]
[Result "1-0"]
[Round "03"]
[TimeControl "180+2"]
[Date "2023.03.21"]
[WhiteClock "0:02:30"]
[BlackClock "0:01:53"]

1. e4 {[%clk 0:03:00]}  e5 {[%clk 0:02:59]} 2. Nf3 {[%clk 0:03:00]}  Nf6 {[%clk 0:02:59]} 3. d4 {[%clk 0:02:59]}  Nxe4 {[%clk 0:02:57]} 4. Bd3 {[%clk 0:02:58]}  d5 {[%clk 0:02:57]} 5. Nxe5 {[%clk 0:02:59]}  Nd7 {[%clk 0:02:57]} 6. Nc3 {[%clk 0:02:59]}  Nxc3 {[%clk 0:02:54]} 7. bxc3 {[%clk 0:02:59]}  Nxe5 {[%clk 0:02:54]} 8. dxe5 {[%clk 0:03:00]}  Be7 {[%clk 0:02:53]} 9. Qh5 {[%clk 0:02:59]}  Be6 {[%clk 0:02:49]} 10. Rb1 {[%clk 0:02:59]}  Qd7 {[%clk 0:02:45]} 11. h3 {[%clk 0:02:49]}  O-O-O {[%clk 0:02:45]} 12. Bb5 {[%clk 0:02:45]}  c6 {[%clk 0:02:43]} 13. Ba6 {[%clk 0:02:45]}  bxa6 {[%clk 0:02:39]} 14. Qe2 {[%clk 0:02:45]}  Qc7 {[%clk 0:02:12]} 15. Qxa6+ {[%clk 0:02:44]}  Kd7 {[%clk 0:02:12]} 16. Rb7 {[%clk 0:02:45]}  Bc5 {[%clk 0:02:11]} 17. Ba3 {[%clk 0:02:38]}  Rb8 {[%clk 0:01:53]} 18. Rxc7+ {[%clk 0:02:32]}  Kxc7 {[%clk 0:01:53]} 19. Bxc5 {[%clk 0:02:30]} 1-0


[Site "https://www.chess.com"]